Cogmind - Beta 14 @@@ ROGUE MODE // 2025.05.02 @ 20:41:07 Player: Polariusz Result: Destroyed by Y-45 Defender with Beam Rifle Performance ------------- Evolutions (0) 0 Regions Visited (3) 600 Robots Destroyed (32) 160 Value Destroyed (901) 901 Prototype IDs (0) 0 Alien Tech Used (0) 0 Bonus (0) 0 TOTAL SCORE: 1661 Bonus ------- None Cogmind --------- Core Integrity 0/250 Matter 291/300 Energy 250/250 System Corruption 1% Temperature Cool (25) Movement Rolling (80) Location -9/Recycling Parts ------- > --- POWER (1) -------- Ion Engine > --- PROPULSION (2) --- Wheel Wheel > --- UTILITY (2) ------ Targeting Computer Light Armor Plating > --- WEAPON (2) ------- Barrage Gun Battle Cannon > --- INVENTORY (5) ---- Improved Heat Sink Small Storage Unit Heavy Assault Rifle Battle Cannon Peak State ------------ > --- POWER ------------ Ion Engine > --- PROPULSION ------- Compact Wheel Subdweller Monowheel > --- UTILITY ---------- Scrap Shield > --- WEAPON ----------- Battle Cannon Battle Cannon > --- INVENTORY -------- Improved Heat Sink Small Storage Unit Battle Cannon Scrap Shield Fragment Scrap Shield Fragment [Rating: 13] Favorites ----------- Power Ion Engine Engine Ion Engine Propulsion Aluminum Leg Leg Aluminum Leg Wheel Wheel Utility Small Storage Unit Storage Small Storage Unit Processor Targeting Computer Protection Scrap Shield Weapon Battle Cannon Energy Gun Small Laser Energy Cannon Beam Cannon Ballistic Gun Barrage Gun Ballistic Cannon Battle Cannon Build | -11 -10 -10 -9 ------- Run | Yrd Mat Sub Rec Slots Evolved . | . . . . Power . | . . . . Propulsion . | . . . . Utility . | . . . . Weapon . | . . . . Parts Attached 37 | 6 15 12 4 Power 3 | 1 1 1 . Engine 3 | 1 1 1 . Core . | . . . . Reactor . | . . . . Propulsion 13 | 2 4 7 . Treads . | . . . . Leg 6 | 2 4 . . Wheel 7 | . . 7 . Hover . | . . . . Flight . | . . . . Utility 7 | 1 2 1 3 Device . | . . . . Storage 1 | 1 . . . Processor 2 | . . . 2 Hackware . | . . . . Protection 4 | . 2 1 1 Artifact . | . . . . Weapon 14 | 2 8 3 1 Energy Gun 5 | 2 3 . . Energy Cannon 5 | . 5 . . Ballistic Gun 1 | . . 1 . Ballistic Cannon 3 | . . 2 1 Launcher . | . . . . Special Weapon . | . . . . Impact Weapon . | . . . . Slashing Weapon . | . . . . Piercing Weapon . | . . . . Special Melee Weapon . | . . . . Unidentified Prototypes . | . . . . Parts Lost 7 | . . 7 . Power 1 | . . 1 . Propulsion 3 | . . 3 . Utility 2 | . . 2 . Weapon 1 | . . 1 . Highest Loss Streak 4 | . . 4 . To Critical Strikes . | . . . . Average Slot Usage (%) 87 | . 97 80 98 Engine 13 | . 14 13 14 Leg 11 | . 28 2 . Wheel 15 | . . 23 28 Storage 6 | . 14 1 . Processor 1 | . . . 19 Protection 10 | . 11 10 7 Energy Gun 5 | . 16 . . Energy Cannon 6 | . 11 3 . Ballistic Gun 1 | . . 1 14 Ballistic Cannon 14 | . . 23 14 Peak Build Rating 13 | 6 8 13 10 Average Rating 9 | 4 7 10 9 On Entrance 5 | . 6 8 8 Naked Turns . | . . . . Heaviest Build 29 | 12 19 29 14 Greatest Support 36 | 20 20 36 20 Greatest Overweight (x) 1 | . . 1 . Average Overweight (x) . | . . . . Largest Inventory Capacity 8 | 8 8 8 5 Average Capacity 6 | 6 8 5 5 Most Carried 8 | 4 8 8 5 Average Carried 5 | 2 7 4 3 Final Capacity 8 | 8 8 5 5 Final Carried 8 | 3 8 3 4 Class Distribution -------------------- 96% | Mutant 3% | Scavenger-Mutant Dominant Class ---------------- Mutant | -10/Materials Mutant | -10/Subcaves Scavenger-Mutant | -9/Recycling Resources | -11 -10 -10 -9 ----------- Run | Yrd Mat Sub Rec Matter Collected 1021 | 202 208 540 71 Remotely . | . . . . Salvage Created 1006 | . 566 337 103 Parts 60 | . 33 21 6 Haulers Intercepted 1 | . 1 . . Recyclers Shooed . | . . . . Parts Field Recycled . | . . . . Retrieved Matter . | . . . . Parts Self-Destructed 11 | . . 11 . Prevented . | . . . . Kills | -11 -10 -10 -9 ------- Run | Yrd Mat Sub Rec Combat Hostiles Destroyed 24 | . 9 13 2 Guns 6 | . 5 . 1 Cannons 18 | . 4 13 1 Classes Destroyed 9 | . 6 2 1 Worker 3 | . 3 . . Hauler 1 | . 1 . . Recycler 1 | . 1 . . Turret 2 | . . 2 . Watcher 1 | . 1 . . Swarmer 5 | . 2 3 . Grunt 7 | . 7 . . Sentry 2 | . . . 2 Subdweller 10 | . . 10 . Best Kill Streak 4 | . 4 4 2 Combat Bots Only 3 | . 2 3 2 Max Kills in Single Turn 1 | . 1 1 1 Gunslinging . | . . . . Exploded . | . . . . Melee . | . . . . Uniques/NPCs Destroyed . | . . . . Combat | -11 -10 -10 -9 -------- Run | Yrd Mat Sub Rec Hostile Shots Fired 178 | . 47 124 7 Missed 60 | . 12 46 2 Damage Taken 1806 | . 398 1337 71 Core 251 | . 55 152 44 Absorbed by Shields . | . . . . Regen/Repaired (Parts) 69 | . 69 . . Core Remaining (%) 100 | 100 . . . Volleys Fired 106 | . 42 61 3 Largest 2 | . 2 2 2 Hottest 120 | . 120 120 67 Shots Fired 212 | . 84 122 6 Gun 66 | . 60 3 3 Cannon 146 | . 24 119 3 Launcher . | . . . . Special . | . . . . Kinetic 90 | . . 84 6 Thermal 122 | . 84 38 . Explosive . | . . . . Electromagnetic . | . . . . Robot Hit Streak 12 | . 9 12 12 Robot Miss Streak 5 | . 5 3 . Penetration Max . | . . . . Secondary Targets 1 | . 1 . . Max Gunslinging Chain 1 | . 1 . . Shots Hit Robots 145 | . 56 84 5 Core Hits 52 | . 25 25 2 Critical Kills . | . . . . Critical Parts Destroyed . | . . . . Critical Strikes . | . . . . Melee Attacks . | . . . . Impact . | . . . . Slashing . | . . . . Piercing . | . . . . Sneak Attacks . | . . . . Combat Hostiles . | . . . . Follow-up Attacks . | . . . . Damage Inflicted 2500 | . 726 1663 111 Guns 577 | . 480 39 58 Cannons 1923 | . 246 1624 53 Explosions . | . . . . Melee . | . . . . Ramming . | . . . . Kinetic 1236 | . . 1125 111 Thermal 1264 | . 726 538 . Explosive . | . . . . Electromagnetic . | . . . . Impact . | . . . . Slashing . | . . . . Piercing . | . . . . Highest Corruption 1 | . 1 1 1 Average Corruption 1 | . 1 1 1 Corruption Purged . | . . . . Corruption Blocked . | . . . . Effects 13 | . 3 10 . Message Errors 3 | . 1 2 . Matter Fused 4 | . 1 3 . Heat Flow Errors 3 | . . 3 . Energy Discharges 1 | . . 1 . Parts Rejected 1 | . 1 . . Data Loss (minor) 1 | . . 1 . Overload Shots . | . . . . Overflow Damage 12 | . . 12 . Projectiles 12 | . . 12 . Explosions . | . . . . Melee . | . . . . Knockbacks 10 | . . 10 . Impact . | . . . . Kinetic 10 | . . 10 . Secondary . | . . . . Self-Inflicted Damage . | . . . . Shots . | . . . . Rammed . | . . . . Targets Rammed . | . . . . Kicked . | . . . . Crushed . | . . . . Highest Temperature 466 | . 466 233 26 Average Temperature 103 | . 119 49 15 Received Heat Transfer 474 | . 180 276 18 Effects 3 | . 3 . . Shutdowns 1 | . 1 . . Energy Bleed 1 | . 1 . . Damage (minor) 1 | . 1 . . Siege Activations . | . . . . Robots Corrupted . | . . . . Combat Hostiles . | . . . . Parts Fried . | . . . . Impact Corruptions . | . . . . Robots Melted . | . . . . Combat Hostiles . | . . . . Parts Melted 5 | . 4 1 . Heat Transferred 2740 | . 1593 1147 . Parts Sabotaged . | . . . . Parts Stolen . | . . . . Parts Stripped . | . . . . Power Chain Reactions . | . . . . Alert | -11 -10 -10 -9 ------- Run | Yrd Mat Sub Rec Peak Influence 192 | . 192 . 122 Initial 67 | . . . 67 Average 87 | . 93 . 91 Maximum Alert Level . | . . . . Low Security (%) 100 | 100 100 . 100 Level 1 . | . . . . Level 2 . | . . . . Level 3 . | . . . . Level 4 . | . . . . Level 5 . | . . . . High Security . | . . . . Max Security . | . . . . Squads Dispatched 2 | . 2 . . Investigation 2 | . 2 . . Extermination . | . . . . Reinforcement . | . . . . Assault . | . . . . Garrison . | . . . . Intercept . | . . . . Searches Triggered . | . . . . Construction Impeded . | . . . . Haulers Reinforced . | . . . . Active Scanning Responses . | . . . . Cargo Convoy Interrupts . | . . . . Stealth | -11 -10 -10 -9 --------- Run | Yrd Mat Sub Rec Distress Signals 2 | . 2 . . Communications Jammed . | . . . . Distress Signals . | . . . . Times Spotted 42 | . 19 19 4 Peak Tracking Total 6 | . 4 6 2 Tactical Retreats 3 | . . 3 . Traps | -11 -10 -10 -9 ------- Run | Yrd Mat Sub Rec Traps Triggered 4 | . 3 1 . Indirectly . | . . . . Trap Hack Attempts . | . . . . Triggered . | . . . . Disarmed . | . . . . Reprogrammed . | . . . . Reused . | . . . . Traps Extracted . | . . . . Installed . | . . . . Triggered . | . . . . Machines | -11 -10 -10 -9 ---------- Run | Yrd Mat Sub Rec Machines Disabled 3 | . 1 2 . Max in Single Turn 1 | . 1 1 . Machines Repaired . | . . . . Machines Dismantled . | . . . . Machines Sabotaged . | . . . . Overloaded Fab Kills . | . . . . Hacking | -11 -10 -10 -9 --------- Run | Yrd Mat Sub Rec Machines Accessed 7 | . 7 . . Terminals 6 | . 6 . . Fabricators . | . . . . Repair Stations 1 | . 1 . . Recycling Units . | . . . . Scanalyzers . | . . . . Garrison Access . | . . . . Total Hacks 18 | . 18 . . Successful 9 | . 9 . . Failed 9 | . 9 . . Catastrophic 2 | . 2 . . Database Lockouts . | . . . . Manual . | . . . . Terminals 14 | . 14 . . Fabricators . | . . . . Repair Stations 4 | . 4 . . Recycling Units . | . . . . Scanalyzers . | . . . . Garrison Access . | . . . . Terminal Hacks 5 | . 5 . . Robot Analysis 2 | . 2 . . Emergency Access Points 1 | . 1 . . Alert Level 1 | . 1 . . Zone Layout 1 | . 1 . . Fabricator Hacks . | . . . . Repair Station Hacks 4 | . 4 . . Scan Component 2 | . 2 . . Repair 2 | . 2 . . Recycling Unit Hacks . | . . . . Scanalyzer . | . . . . Garrison Access Hacks . | . . . . Unauthorized Hacks . | . . . . Terminals . | . . . . Fabricators . | . . . . Repair Stations . | . . . . Recycling Units . | . . . . Scanalyzers . | . . . . Garrison Access . | . . . . Data Cores Recovered . | . . . . Used . | . . . . Hacking Detections 6 | . 6 . . Full Trace Events 2 | . 2 . . Feedback Events . | . . . . Feedback Blocked . | . . . . Robot Schematics Acquired . | . . . . Robots Built . | . . . . Authchips . | . . . . Time . | . . . . Total Robot Build Rating . | . . . . Part Schematics Acquired . | . . . . Parts Built . | . . . . Authchips . | . . . . Time . | . . . . Total Part Build Rating . | . . . . Parts Repaired 2 | . 2 . . Time 52 | . 52 . . Parts Recycled . | . . . . Recycled Matter . | . . . . Retrieved Matter . | . . . . Retrieved Components . | . . . . Parts Scanalyzed . | . . . . Part Schematics Acquired . | . . . . Parts Damaged . | . . . . Bothacking | -11 -10 -10 -9 ------------ Run | Yrd Mat Sub Rec Used RIF Installer . | . . . . Robots Hacked . | . . . . Non-combat . | . . . . Combat . | . . . . Robot Hacks Applied . | . . . . Relay Couplers Released . | . . . . Fabnet Peak Effective % . | . . . . Robots Rewired . | . . . . Allies Hacked . | . . . . Hacks Repelled . | . . . . Allies | -11 -10 -10 -9 -------- Run | Yrd Mat Sub Rec Total Allies . | . . . . Largest Group . | . . . . Highest-Rated Group . | . . . . Highest-Rated Ally . | . . . . Total Orders . | . . . . Ally Attacks . | . . . . Total Damage . | . . . . Kills . | . . . . Allies Corrupted . | . . . . Allies Melted . | . . . . Intel | -11 -10 -10 -9 ------- Run | Yrd Mat Sub Rec Robot Analysis Total 2 | . 2 . . Derelict Logs Recovered 2 | . . 2 . Drone Launches . | . . . . Drone Recoveries . | . . . . Exploration | -11 -10 -10 -9 ------------- Run | Yrd Mat Sub Rec Turns Passed 2869 | 84 1021 1591 173 Spaces Moved 2190 | 45 639 1329 177 Core 5 | 5 . . . Treads . | . . . . Legs 749 | 40 639 70 . Wheels 1436 | . . 1259 177 Hover . | . . . . Flight . | . . . . Fastest Speed 50 | 50 120 80 80 Average Speed 104 | 112 120 99 80 Slowest Speed 190 | 120 120 190 80 Overloaded Moves . | . . . . Propulsion Burnouts . | . . . . Robots Hopped . | . . . . Cave-ins Triggered . | . . . . Exploration Rate (%) 44 | 4 85 61 29 Regions Visited 3 Branch Regions 2 Pre-discovered Areas . | . . . . Known Exits Taken . | . . . . Unknown Exits Taken 3 | 1 1 1 . Scrap Searched 17 | . . 17 . Spaces Dug . | . . . . Terrain Destroyed 1 | . . 1 . Melee . | . . . . Projectile 1 | . . 1 . AOE . | . . . . Terrain Rammed . | . . . . Walls Destroyed . | . . . . Machines Disabled . | . . . . Actions | -11 -10 -10 -9 --------- Run | Yrd Mat Sub Rec Total 2584 | 78 823 1480 203 Wait 152 | 19 83 35 15 Move 2187 | 44 638 1328 177 Hop . | . . . . Pick Up 58 | 9 28 17 4 Fast Attach . | . . . . Attach 25 | 6 7 10 2 Detach 1 | . . 1 . Swap 12 | . 8 2 2 Drop 34 | . 17 17 . Fire 106 | . 42 61 3 Melee . | . . . . Ram . | . . . . Kick . | . . . . Crush . | . . . . Escape Stasis . | . . . . Rewire . | . . . . Trap . | . . . . Miscellaneous 9 | . . 9 . Route ------- -11/Scrapyard -10/Materials (discovered 5 exits: [*Mat x2] / [*Min x2] / [*Sub]) -10/Subcaves (discovered 3 exits: [*Mat x2] / [*Rec]) -9/Recycling History --------- Turn | Location | Event 4 | -11/Scrapyard | Discovered new exit (range 15) 85 | -11/Scrapyard | Entered Materials 117 | -10/Materials | Discovered new exit (range 6) 290 | -10/Materials | Discovered new exit (range 8) 311 | -10/Materials | Build established: Mutant 370 | -10/Materials | Repaired Sml. Laser? 374 | -10/Materials | Discovered new exit (range 15) 414 | -10/Materials | Repaired Aluminum Leg? 901 | -10/Materials | Discovered new exit (range 13) 1097 | -10/Materials | Discovered new exit (range 8) 1106 | -10/Materials | Entered Subcaves 1114 | -10/Subcaves | Ambushed by Subdwellers from Twisted Machinery 1251 | -10/Subcaves | Core integrity fell below 50% 1283 | -10/Subcaves | Lost 4 parts (1p3n) 1485 | -10/Subcaves | Shifting Twisted Machinery released Sub. Machine Gun 1753 | -10/Subcaves | Discovered new exit (range 10) 1802 | -10/Subcaves | Learned Materials emergency access door positions 1819 | -10/Subcaves | Shifting Twisted Machinery released Sub. Power Source 1944 | -10/Subcaves | Discovered new exit (range 6) 1990 | -10/Subcaves | Disturbed a concealed Subdweller 2076 | -10/Subcaves | A swath of the cavern ceiling suddenly collapsed 2217 | -10/Subcaves | Shifting Twisted Machinery released Sub. Power Source 2284 | -10/Subcaves | Disturbed a concealed Subdweller 2429 | -10/Subcaves | Ambushed by Subdweller buried in earth 2521 | -10/Subcaves | Discovered new exit (range 13) 2536 | -10/Subcaves | Core integrity fell below 20% 2697 | -10/Subcaves | Entered Recycling 2698 | -9/Recycling | Met a Zionite searching for Scraptown 2870 | -9/Recycling | Destroyed by Y-45 Defender with Beam Rifle Last Messages --------------- T9-2TS(z): "Anyway I've been here searching too long already, time to slink back to the caves before I'm caught. You'd best do the same." Acquired Targeting Computer. Acquired 33 matter. Y-45 Defender springs to life. Y-45 Defender destroyed. Y-45 Defender springs to life. U-05 Engineer builds a Door. Acquired Hvy. Assault Rifle. Acquired 19 matter. R-06 Scavenger collects Lgt. Treads. Y-45 Defender destroyed. Acquired 9 matter. R-06 Scavenger collects Imp. Ion Engine. Acquired Lgt. Armor Plating. Discarded Targeting Computer. R-06 Scavenger collects Heat Sink. R-06 Scavenger collects Lgt. Treads. Acquired 10 matter. Map ----- +----------------------------------------------------+ | ?????????????????????????????????????????????????? | | ?????????????????????????????????????????????????? | | ?????????????????????????????????????????????????? | | ?????????????????????????????????????????????????? | | ?????????????????????????????????????????????????? | | ?????????????????????????????????????????????????? | | ?????????????????????????????????????????????????? | | ?????????????????????????????????????????????????? | | ?????????????????????????????????????????????????? | | ?????????????????????????????????????????????????? | | ?????????????????????????????????????????????????? | | ?????????????????????????????????????????????????? | | ?????????????????????????????????????????????????? | | ?????????????????????????????????????????????????? | | ?????????????????????????????????????????????????? | | ?????????????????????????????????????????????????? | | ?????????????????????????????????????????????????? | | ????#####????????????????????????????????????????? | | ??### #????????????????????????????????????????? | | ??#!! ###??????????????????????????????????????? | | ??# %%#??????????????????????????????????????? | | ??#! %%#??????????????????????????????????????? | | ??### %%#??#####???#####???????????????????????? | | ????# ###??#"""#???#"""#???????????????????????? | | ????# ######"Y"#####"Y"## #####+???????????????? | | ????# @Y %r #??????????? | | ????# r +??????????? | | ????# r % #??????????? | | ??### #####+##+######+###########Y #??????????? | | ??#]] # #??????????????????????????????? | | ??# # "" #??????????????????????????????? | | ??# ] # "Y """ #??????????????????????????????? | | ??### # "" """ #??????????????????????????????? | | ????# # """ #??????????????????????????????? | | ????# # """ #??????????????????????????????? | | ??### # """ #??????????????????????????????? | | ??#%% # #??????????????????????????????? | | ??#%% ###########??????????????????????????????? | | ??#%% #?##?????????????????????????????????????? | | ??### ## ##########????????????????????????????? | | ????# # #????????????????????????????? | | ????# # ##???????????????????????????? | | ????# # #???????????????????????????? | | ???## + #????????????????????????????? | | ???#% % # #????????????????????????????? | | ???## # #????????????????????????????? | | ????# % # #????????????????????????????? | | ????# #############????????????????????????????? | | ????# #????????????????????????????????????????? | | ??### #????????????????????????????????????????? | +----------------------------------------------------+ Best States ------------- Heat Dissipation 25 Energy Generation 10 Energy Capacity 250 Matter Stores 300 Matter Capacity 300 Sight Range 16 Terrain Scan Density 10 Armor Coverage 800 Evasion (%) 55 Targeting Accuracy 10 Item Schematics ----------------- None Robot Schematics ------------------ None Fabricated ------------ Nothing Alien Tech Used ----------------- None Achievements -------------- None Challenges ------------ None Game ------ Seed ThunderWeightDeconstructor Manual? 0 Play Time 00:28:23 Cumulative 23.9 hours Start 2025.05.02 @ 20:14:48 End 2025.05.02 @ 20:41:07 Sessions 1 Manual Loads 0 Difficulty Rogue Special Mode None Game No. 23 Rogue 23 Adventurer 0 Explorer 0 Win Type - Total 0 Types 0/0/0/0/0/0/0/0/0 Lore% 17 Gallery% 22 Achievement% 18 Wizard Run 0 Options --------- Layout 1 ASCII 0 Keyboard 0 Movement Mouse Keybinds 0 Fullscreen 1 Font 24/Smallcaps Map View 50x35 Zoom Use 0% Tactical HUD 0 Map Filters NONE Filters NONE Steam 1 RUN: 6b5cd9a9-864f-49b3-8c95-c41a838d0a1d